fUSD/lending_fUSD_20250708
["ID","MTS","AMOUNT","RATE_DAILY","PERIOD"]
[370275459,1751933444580,-460.0,0.00030409,7]
[370275461,1751933444590,-460.0,0.00030409,7]
[370275463,1751933444600,-460.0,0.00030409,7]
[370275465,1751933444609,-460.0,0.00030409,7]
[370275467,1751933444619,-460.0,0.00030409,7]
[370275469,1751933444628,-460.0,0.00030409,7]
[370275471,1751933444637,-460.0,0.00030409,7]
[370275473,1751933444647,-460.0,0.00030409,7]
[370275475,1751933444656,-460.0,0.00030409,7]
[370275477,1751933444665,-460.0,0.00030409,7]
[370275479,1751933444675,-443.54,0.00030409,7]
[370275481,1751933444684,-460.0,0.00030409,7]
[370275483,1751933444694,-460.0,0.00030409,7]
[370275485,1751933444703,-460.0,0.00030409,7]
[370275487,1751933444713,-460.0,0.00030409,7]
[370275489,1751933444722,-460.0,0.00030409,7]
[370275491,1751933444731,-460.0,0.00030409,7]
[370275493,1751933444741,-460.0,0.00030409,7]
[370275495,1751933444751,-460.0,0.00030409,7]
[370275497,1751933444760,-460.0,0.00030409,7]
[370275499,1751933444770,-460.0,0.00030409,7]
[370275501,1751933444781,-460.0,0.0003041,7]
[370275503,1751933444793,-189.88039646,0.0003041,7]
[370275505,1751933444803,-460.0,0.0003041,7]
[370275507,1751933444813,-460.0,0.0003041,7]
[370275509,1751933444822,-460.0,0.0003041,7]
[370275511,1751933444833,-460.0,0.0003041,7]
[370275513,1751933444842,-460.0,0.0003041,7]
[370275515,1751933444851,-391.35212132,0.0003041,7]
[370275517,1751933444864,-460.0,0.0003041,7]
[370275519,1751933444873,-460.0,0.0003041,7]
[370275521,1751933444883,-460.0,0.0003041,7]
[370275523,1751933444892,-460.0,0.0003041,7]
[370275525,1751933444901,-460.0,0.0003041,7]
[370275526,1751933444911,-460.0,0.0003041,7]
[370275529,1751933444920,-460.0,0.0003041,7]
[370275531,1751933444932,-467.8,0.0003041,7]
[370275533,1751933444944,-460.0,0.0003041,7]
[370275535,1751933444954,-460.0,0.0003041,7]
[370275537,1751933444964,-460.0,0.0003041,7]
[370275539,1751933444973,-460.0,0.0003041,7]
[370275540,1751933444983,-184.57,0.0003041,7]
[370275541,1751933444991,-460.0,0.0003041,7]
[370275542,1751933445000,-541.75,0.0003041,7]
[370275543,1751933445009,-258.13,0.0003041,7]
[370275544,1751933445019,-460.0,0.0003041,7]
[370275545,1751933445028,-460.0,0.0003041,7]
[370275546,1751933445038,-532.38,0.0003041,7]
[370275547,1751933445047,-476.44328467,0.0003041,7]
[370275548,1751933445057,-460.0,0.0003041,7]
[370275549,1751933445067,-460.0,0.0003041,7]
[370275550,1751933445076,-460.0,0.0003041,7]
[370275551,1751933445085,-460.0,0.0003041,7]
[370275552,1751933445095,-229.25,0.0003041,7]
[370275553,1751933445104,-515.03,0.0003041,7]
[370275554,1751933445114,-460.0,0.0003041,7]
[370275556,1751933445123,-515.23,0.0003041,7]
[370275557,1751933445132,-460.0,0.0003041,7]
[370275559,1751933445141,-460.0,0.0003041,7]
[370275561,1751933445150,-460.0,0.0003041,7]
[370275563,1751933445160,-460.0,0.0003041,7]
[370275565,1751933445169,-460.0,0.0003041,7]
[370275568,1751933445179,-460.0,0.0003041,7]
[370275570,1751933445189,-460.0,0.0003041,7]
[370275572,1751933445198,-460.0,0.0003041,7]
[370275574,1751933445207,-460.0,0.0003041,7]
[370275575,1751933445216,-460.0,0.0003041,7]
[370275577,1751933445226,-460.0,0.0003041,7]
[370275579,1751933445235,-460.0,0.0003041,7]
[370275582,1751933445246,-460.0,0.0003041,7]
[370275584,1751933445255,-460.0,0.0003041,7]
[370275585,1751933445264,-460.0,0.0003041,7]
[370275587,1751933445273,-460.0,0.0003041,7]
[370275589,1751933445282,-460.0,0.0003041,7]
[370275591,1751933445293,-456.71,0.0003041,7]
[370275593,1751933445303,-460.0,0.0003041,7]
[370275595,1751933445312,-292.48,0.0003041,7]
[370275597,1751933445323,-155.29,0.0003041,7]
[370275599,1751933445333,-460.0,0.0003041,7]
[370275601,1751933445342,-460.0,0.0003041,7]
[370275603,1751933445352,-460.0,0.0003041,7]
[370275605,1751933445361,-532.03,0.0003041,7]
[370275607,1751933445371,-460.0,0.0003041,7]
[370275610,1751933445380,-460.0,0.0003041,7]
[370275612,1751933445390,-5417.56551909,0.00030464,3]
[370275613,1751933445399,-500.0,0.00030473,5]
[370275615,1751933445408,-2339.34267247,0.00030474,2]
[370275617,1751933445419,-836.92587831,0.00030574,3]
[370275620,1751933445430,-5417.56551909,0.00030574,3]
[370275621,1751933445440,-500.0,0.00030584,2]
[370275623,1751933445450,-7043.6411,0.00030584,2]
[370275625,1751933445460,-197.26,0.00030612,120]
[370275628,1751933445470,-164.42,0.0003064,2]
[370275629,1751933445480,-10835.1310382,0.00030663,3]
[370275632,1751933445491,-10835.1310382,0.00030664,3]
[370275633,1751933445501,-5417.56551909,0.00030672,3]
[370275635,1751933445512,-460.0,0.00030673,7]
[370275637,1751933445523,-37922.9586336,0.00030673,3]
[370275640,1751933445532,-5417.56551909,0.00030674,3]
[370275641,1751933445543,-460.0,0.00030681,7]
[370275642,1751933445552,-460.0,0.00030681,7]
[370275643,1751933445562,-460.0,0.00030681,7]
[370275644,1751933445571,-460.0,0.00030681,7]
[370275645,1751933445580,-460.0,0.00030681,7]
[370275646,1751933445590,-460.0,0.00030681,7]
[370275647,1751933445599,-460.0,0.00030681,7]
[370275648,1751933445608,-460.0,0.00030681,7]
[370275649,1751933445618,-460.0,0.00030681,7]
[370275650,1751933445627,-460.0,0.00030681,7]
[370275651,1751933445636,-460.0,0.00030681,7]
[370275652,1751933445646,-177.021164,0.00030681,7]
[370275653,1751933445656,-460.0,0.00030681,7]
[370275654,1751933445667,-173.29359,0.00030681,7]
[370275655,1751933445678,-460.0,0.00030681,7]
[370275656,1751933445688,-460.0,0.00030681,7]
[370275657,1751933445700,-460.0,0.00030682,7]
[370275658,1751933445710,-460.0,0.00030682,7]
[370275659,1751933445720,-460.0,0.00030682,7]
[370275660,1751933445730,-460.0,0.00030682,7]
[370275661,1751933445741,-460.0,0.00030682,7]
[370275662,1751933445751,-1396.94162738,0.00030682,7]
[370275663,1751933445927,-293.86837262,0.00030682,7]
[370275664,1751933445937,-460.0,0.00030682,7]
[370275665,1751933445947,-460.0,0.00030682,7]
[370275666,1751933445956,-460.0,0.00030682,7]
[370275667,1751933445966,-475.5,0.00030682,7]
[370275668,1751933445975,-460.0,0.00030682,7]
[370275669,1751933445985,-460.0,0.00030682,7]
[370275670,1751933445995,-341.14317001,0.00030682,7]
[370275671,1751933446022,-152.29682999,0.00030682,7]
[370275672,1751933446032,-460.0,0.00030682,7]
[370275673,1751933446043,-460.0,0.00030682,7]
[370275674,1751933446053,-460.0,0.00030682,7]
[370275675,1751933446063,-460.0,0.00030682,7]
[370275677,1751933446073,-460.0,0.00030682,7]
[370275679,1751933446083,-460.0,0.00030682,7]
[370275680,1751933446094,-460.0,0.00030682,7]
[370275682,1751933446104,-460.0,0.00030682,7]
[370275683,1751933446117,-752.25,0.00030682,7]
[370275684,1751933446127,-460.0,0.00030682,7]
[370275685,1751933446137,-460.0,0.00030682,7]
[370275686,1751933446149,-460.0,0.00030682,7]
[370275687,1751933446159,-460.0,0.00030682,7]
[370275688,1751933446172,-460.0,0.00030682,7]
[370275689,1751933446182,-460.0,0.00030682,7]
[370275690,1751933446194,-460.0,0.00030682,7]
[370275691,1751933446204,-460.0,0.00030682,7]
[370275692,1751933446214,-460.0,0.00030682,7]
[370275693,1751933446225,-541.8,0.00030682,7]
[370275694,1751933446235,-554.49,0.00030682,7]
[370275695,1751933446246,-460.0,0.00030682,7]
[370275696,1751933446258,-460.0,0.00030682,7]
[370275697,1751933446270,-460.0,0.00030683,7]
[370275698,1751933446281,-598.05401028,0.00030683,7]
[370275699,1751933446292,-460.0,0.00030683,7]
[370275700,1751933446301,-340.53391086,0.00030683,7]
[370275701,1751933446310,-460.0,0.00030683,7]
[370275702,1751933446322,-460.0,0.00030683,7]
[370275703,1751933446333,-460.0,0.00030683,7]
[370275704,1751933446344,-460.0,0.00030683,7]
[370275705,1751933446355,-547.46,0.00030683,7]
[370275706,1751933446364,-460.0,0.00030683,7]
[370275707,1751933446375,-460.0,0.00030683,7]
[370275708,1751933446387,-460.0,0.00030683,7]
[370275709,1751933446396,-460.0,0.00030683,7]
[370275710,1751933446406,-232.49,0.00030683,7]
[370275711,1751933446415,-460.0,0.00030683,7]
[370275712,1751933446425,-460.0,0.00030683,7]
[370275713,1751933446435,-595.14395552,0.00030683,7]
[370275714,1751933446444,-460.0,0.00030683,7]
[370275715,1751933446453,-460.0,0.00030683,7]
[370275716,1751933446462,-460.0,0.00030683,7]
[370275717,1751933446472,-460.0,0.00030683,7]
[370275719,1751933446481,-460.0,0.00030683,7]
[370275721,1751933446490,-189.4,0.00030683,7]
[370275723,1751933446499,-460.0,0.00030683,7]
[370275725,1751933446509,-153.08,0.00030683,7]
[370275726,1751933446519,-460.0,0.00030683,7]
[370275727,1751933446529,-464.0,0.00030683,7]
[370275728,1751933446539,-460.0,0.00030683,7]
[370275730,1751933446548,-460.0,0.00030683,7]
[370275732,1751933446558,-460.0,0.00030683,7]
[370275734,1751933446567,-460.0,0.00030683,7]
[370275736,1751933446577,-457.5,0.00030683,7]
[370275738,1751933446586,-377.99,0.00030683,7]
[370275740,1751933446595,-460.0,0.00030683,7]
[370275741,1751933446605,-460.0,0.00030683,7]
[370275743,1751933446615,-460.0,0.00030683,7]
[370275746,1751933446625,-460.0,0.00030683,7]
[370275747,1751933446636,-460.0,0.00030683,7]
[370275749,1751933446646,-460.0,0.00030683,7]
[370275751,1751933446656,-460.0,0.00030683,7]
[370275753,1751933446667,-460.0,0.00030683,7]
[370275755,1751933446676,-460.0,0.00030683,7]
[370275757,1751933446687,-460.0,0.00030683,7]
[370275759,1751933446696,-460.0,0.00030683,7]
[370275760,1751933446706,-55.03834194,0.00030683,7]
[370275792,1751933447040,-460.0,0.00030407,7]
[370275794,1751933447050,-263.983149,0.00030409,7]
[370275796,1751933447061,-196.016851,0.00030409,7]
[370275797,1751933447070,-253.5388618,0.00030683,7]
[370275800,1751933447081,-151.42279626,0.00030683,7]
[370275801,1751933447090,-460.0,0.00030683,7]
[370275802,1751933447100,-460.0,0.00030683,7]
[370275803,1751933447109,-460.0,0.00030683,7]
[370275804,1751933447118,-460.0,0.00030683,7]
[370275805,1751933447127,-460.0,0.00030683,7]
[370275806,1751933447136,-460.0,0.00030683,7]
[370275807,1751933447146,-460.0,0.00030683,7]
[370275808,1751933447155,-459.66881758,0.00030683,7]
[370275809,1751933447166,-0.33118242,0.00030683,7]
[370275810,1751933447175,-407.97445404,0.00030683,7]
[370275811,1751933447186,-52.02554596,0.00030683,7]
[370275812,1751933447195,-460.0,0.00030683,7]
[370275813,1751933447205,-460.0,0.00030683,7]
[370275814,1751933447214,-509.75,0.00030683,7]
[370275815,1751933447223,-460.0,0.00030683,7]
[370275816,1751933447232,-168.47484299,0.00030683,7]
[370275819,1751933834422,213.88,0.00029183,120]
[370275821,1751933957761,2274.80651,0.0003013,120]
[370275824,1751934200834,157.18,0.00013699,2]
[370275844,1751934631393,-250.0,0.00015,2]
[370275845,1751934631402,-356.4131216,0.00019399,2]
[370275846,1751934631500,-575.0,0.00019399,2]
[370275847,1751934631512,-268.5868784,0.00019399,2]
[370275848,1751934631521,-550.0,0.00019399,2]
[370275849,1751934631530,-300.0,0.00019399,2]
[370275850,1751934631539,-3162.80689674,0.000194,2]
[370275851,1751934631550,-64133.42680227,0.000194,2]
[370275852,1751934631565,-566.9843,0.000194,2]
[370275853,1751934631669,-1146.6580125,0.000194,2]
[370275854,1751934631680,-2482.51562852,0.000194,2]
[370275855,1751934631692,-1999.85376402,0.000194,2]
[370275856,1751934631747,-429.84810508,0.000194,2]
[370275857,1751934631758,-455.40753915,0.000194,2]
[370275858,1751934631770,-25633.72982966,0.000194,2]
[370275860,1751934631784,-445.91384042,0.000194,2]
[370275878,1751934637452,-210.72078788,0.00019399,2]
[370275879,1751934637462,-500.0,0.00019399,2]
[370275880,1751934637471,-206.52922752,0.00019399,2]
[370275881,1751934637480,-178.08378526,0.00019399,2]
[370275882,1751934637490,-500.0,0.00019399,2]
[370275883,1751934637499,-500.0,0.00019399,2]
[370275884,1751934637509,-500.0,0.00019399,2]
[370275885,1751934637518,-500.0,0.00019399,2]
[370275886,1751934637527,-500.0,0.00019399,2]
[370275887,1751934637537,-399.61619714,0.00019399,2]
[370275888,1751934637546,-355.97127659,0.00019399,2]
[370275889,1751934637556,-620.0,0.00019399,2]
[370275890,1751934637564,-126407.63264654,0.000194,2]
[370275891,1751934637575,-679.54188538,0.000194,2]
[370275892,1751934637594,-6461.50756732,0.000194,2]
[370275893,1751934637605,-516.0,0.000194,2]
[370275894,1751934637619,-739.59725546,0.000194,2]
[370275895,1751934637630,-329.0,0.000194,2]
[370275896,1751934637673,-500.21823612,0.000194,2]
[370275897,1751934637835,-4757.0208978,0.000194,2]
[370275920,1751934639763,-611621.52627899,0.000194,2]
[370275921,1751934639775,-420.0,0.00021136,2]
[370275922,1751934639787,-1680.0,0.00021239,2]
[370275923,1751934639799,-587.0,0.00023029,2]
[370275924,1751934639812,-671.0,0.00023252,2]
[370275925,1751934639824,-269.8242305,0.000238,2]
[370275926,1751934639835,-153.96119006,0.000239,2]
[370275927,1751934639849,-5000.0,0.00024,5]
[370275928,1751934639862,-153.96118992,0.00024266,2]
[370275929,1751934639873,-1526.1673019,0.000243,10]
[370275930,1751934639884,-153.96118992,0.00024632,2]
[370275931,1751934639895,-151.0,0.00024658,2]
[370275932,1751934639906,-7064.0,0.00024658,5]
[370275933,1751934639917,-1526.16730184,0.00024659,11]
[370275934,1751934639929,-153.96118992,0.00024998,2]
[370275935,1751934639940,-553.0,0.00025092,2]
[370275936,1751934639952,-156.587,0.00025206,2]
[370275937,1751934639964,-153.96118992,0.00025364,2]
[370275938,1751934639975,-1526.16730184,0.00025417,13]
[370275939,1751934639987,-153.96118992,0.00025731,2]
[370275940,1751934639999,-162.380719,0.00025754,2]
[370275941,1751934640011,-153.96118992,0.00026097,2]
[370275942,1751934640022,-1526.16730184,0.00026176,14]
[370275943,1751934640033,-168.3888056,0.00026302,2]
[370275944,1751934640046,-153.96118992,0.00026463,2]
[370275945,1751934640057,-5509.0,0.000267,5]
[370275946,1751934640069,-153.96118992,0.00026829,2]
[370275947,1751934640082,-174.61919141,0.0002685,2]
[370275948,1751934640094,-1526.16730184,0.00026934,16]
[370275949,1751934640105,-153.96118992,0.00027195,2]
[370275950,1751934640118,-3871.05,0.00027243,2]
[370275951,1751934640135,-181.08010149,0.00027398,2]
[370275952,1751934640147,-153.96118992,0.00027561,2]
[370275953,1751934640161,-1526.16730184,0.00027693,17]
[370275954,1751934640172,-666.0,0.00027714,2]
[370275955,1751934640183,-153.96118992,0.00027927,2]
[370275956,1751934640195,-184.79089132,0.00027946,2]
[370275957,1751934640205,-153.96118992,0.00028293,2]
[370275958,1751934640216,-1526.16730184,0.00028452,19]
[370275959,1751934640227,-153.96118992,0.00028659,2]
[370275960,1751934640237,-153.28,0.00028678,2]
[370275961,1751934640251,-5000.0,0.00028688,2]
[370275962,1751934640264,-210.0,0.0002889,2]
[370275963,1751934640275,-164.42,0.00028924,2]
[370275964,1751934640285,-250.0,0.00028981,2]
[370275965,1751934640294,-153.96118992,0.00029025,2]
[370275966,1751934640305,-165.77,0.00029028,2]
[370275967,1751934640316,-497.03,0.00029072,2]
[370275968,1751934640328,-1526.16730184,0.0002921,20]
[370275969,1751934640339,-1000.0,0.00029234,2]
[370275970,1751934640350,-153.96118992,0.00029392,2]
[370275971,1751934640363,-569.72,0.00029409,2]
[370275972,1751934640373,-521.22,0.00029584,2]
[370275973,1751934640385,-153.96118992,0.00029758,2]
[370275974,1751934640396,-171.57,0.00029782,2]
[370275975,1751934640408,-1207.07,0.00029803,2]
[370275976,1751934640421,-210.0,0.0002981,2]
[370275977,1751934640432,-836.92587831,0.00029821,2]
[370275978,1751934640442,-210.31172994,0.00029821,2]
[370275979,1751934640453,-160.0,0.00029821,2]
[370275980,1751934640464,-1526.16730184,0.00029969,22]
[370275981,1751934640475,-20000.0,0.0003,5]
[370275982,1751934640488,-1000.0,0.00030036,2]
[370275983,1751934640508,-153.96118992,0.00030124,2]
[370275984,1751934640519,-836.92587831,0.00030136,7]
[370275985,1751934640530,-577.97,0.00030136,7]
[370275986,1751934640543,-490.0,0.00030136,7]
[370275987,1751934640556,-460.0,0.00030136,7]
[370275988,1751934640567,-460.0,0.00030136,7]
[370275989,1751934640579,-500.0,0.00030136,7]
[370275990,1751934640590,-500.0,0.00030136,7]
[370275991,1751934640601,-500.0,0.00030136,7]
[370275992,1751934640612,-490.0,0.00030136,7]
[370275993,1751934640623,-490.0,0.00030136,7]
[370275994,1751934640634,-460.0,0.00030136,7]
[370275995,1751934640645,-490.0,0.00030136,7]
[370275996,1751934640656,-460.0,0.00030136,7]
[370275997,1751934640667,-466.75,0.00030136,7]
[370275998,1751934640677,-490.0,0.00030136,7]
[370275999,1751934640690,-460.0,0.00030136,7]
[370276000,1751934640700,-490.0,0.00030136,7]
[370276001,1751934640711,-366.43,0.00030164,30]
[370276002,1751934640723,-353.75,0.00030267,2]
[370276003,1751934640733,-7159.1118,0.00030308,2]
[370276004,1751934640743,-6761.84023917,0.0003038,2]
[370276005,1751934640754,-196.99,0.00030399,7]
[370276006,1751934640764,-460.0,0.000304,7]
[370276007,1751934640775,-460.0,0.000304,7]
[370276008,1751934640785,-836.92587831,0.000304,3]
[370276009,1751934640796,-460.0,0.000304,7]
[370276010,1751934640806,-460.0,0.000304,7]
[370276011,1751934640817,-353.39483095,0.000304,7]
[370276012,1751934640827,-460.0,0.000304,7]
[370276013,1751934640838,-460.0,0.000304,7]
[370276014,1751934640849,-210.31172994,0.000304,7]
[370276015,1751934640859,-460.0,0.000304,7]
[370276016,1751934640870,-460.0,0.000304,7]
[370276017,1751934640881,-460.0,0.000304,7]
[370276018,1751934640892,-561.39,0.000304,7]
[370276019,1751934640902,-460.0,0.000304,7]
[370276020,1751934640913,-460.0,0.000304,7]
[370276021,1751934640924,-460.0,0.000304,7]
[370276022,1751934640934,-460.0,0.000304,7]
[370276023,1751934640944,-460.0,0.000304,7]
[370276024,1751934640955,-490.0,0.000304,7]
[370276025,1751934640965,-460.0,0.000304,7]
[370276026,1751934640976,-460.0,0.000304,7]
[370276027,1751934640988,-490.0,0.000304,7]
[370276028,1751934640999,-460.0,0.000304,7]
[370276029,1751934641010,-490.0,0.000304,7]
[370276030,1751934641022,-460.0,0.000304,7]
[370276031,1751934641032,-460.0,0.000304,7]
[370276032,1751934641043,-460.0,0.000304,7]
[370276033,1751934641054,-460.0,0.000304,7]
[370276034,1751934641064,-460.0,0.000304,7]
[370276035,1751934641075,-460.0,0.000304,7]
[370276036,1751934641086,-460.0,0.000304,7]
[370276037,1751934641097,-460.0,0.000304,7]
[370276038,1751934641107,-460.0,0.000304,7]
[370276039,1751934641118,-542.07,0.00030407,7]
[370276040,1751934641129,-460.0,0.00030407,7]
[370276041,1751934641141,-460.0,0.00030407,7]
[370276042,1751934641153,-460.0,0.00030407,7]
[370276043,1751934641163,-460.0,0.00030407,7]
[370276044,1751934641174,-460.0,0.00030407,7]
[370276045,1751934641184,-219.54796345,0.00030407,7]
[370276046,1751934641195,-460.0,0.00030407,7]
[370276047,1751934641206,-460.0,0.00030407,7]
[370276048,1751934641217,-460.0,0.00030407,7]
[370276049,1751934641228,-460.0,0.00030407,7]
[370276050,1751934641238,-460.0,0.00030407,7]
[370276051,1751934641249,-460.0,0.00030407,7]
[370276052,1751934641260,-364.807268,0.00030407,7]
[370276053,1751934641271,-460.0,0.00030407,7]
[370276054,1751934641282,-460.0,0.00030407,7]
[370276055,1751934641293,-460.0,0.00030407,7]
[370276056,1751934641304,-460.0,0.00030407,7]
[370276057,1751934641315,-460.0,0.00030407,7]
[370276058,1751934641326,-460.0,0.00030407,7]
[370276059,1751934641337,-460.0,0.00030407,7]
[370276060,1751934641348,-460.0,0.00030407,7]
[370276061,1751934641359,-460.0,0.00030407,7]
[370276062,1751934641372,-460.0,0.00030407,7]
[370276063,1751934641383,-460.0,0.00030407,7]
[370276064,1751934641394,-460.0,0.00030407,7]
[370276065,1751934641406,-460.0,0.00030407,7]
[370276066,1751934641417,-490.0,0.00030407,7]
[370276067,1751934641427,-460.0,0.00030407,7]
[370276068,1751934641438,-490.0,0.00030407,7]
[370276069,1751934641449,-460.0,0.00030407,7]
[370276070,1751934641460,-460.0,0.00030407,7]
[370276071,1751934641471,-460.0,0.00030407,7]
[370276072,1751934641482,-460.0,0.00030407,7]
[370276073,1751934641494,-542.01,0.00030407,7]
[370276074,1751934641506,-460.0,0.00030407,7]
[370276075,1751934641518,-460.0,0.00030407,7]
[370276076,1751934641529,-525.46,0.00030407,7]
[370276077,1751934641542,-460.0,0.00030407,7]
[370276078,1751934641554,-460.0,0.00030407,7]
[370276079,1751934641565,-460.0,0.00030407,7]
[370276080,1751934641575,-460.0,0.00030407,7]
[370276081,1751934641586,-460.0,0.00030407,7]
[370276082,1751934641596,-460.0,0.00030407,7]
[370276083,1751934641608,-460.0,0.00030407,7]
[370276084,1751934641619,-460.0,0.00030407,7]
[370276085,1751934641631,-460.0,0.00030407,7]
[370276086,1751934641643,-460.0,0.00030407,7]
[370276087,1751934641655,-460.0,0.00030407,7]
[370276088,1751934641665,-460.0,0.00030407,7]
[370276089,1751934641675,-562.76412277,0.00030407,7]
[370276090,1751934641686,-460.0,0.00030407,7]
[370276091,1751934641697,-460.0,0.00030407,7]
[370276092,1751934641708,-460.0,0.00030407,7]
[370276093,1751934641720,-460.0,0.00030407,7]
[370276094,1751934641731,-442.01822837,0.00030409,7]
[370276095,1751934641743,-224.64,0.00030409,7]
[370276096,1751934642009,-460.0,0.00030409,7]
[370276097,1751934642033,-460.0,0.00030409,7]
[370276098,1751934642044,-460.0,0.00030409,7]
[370276099,1751934642054,-460.0,0.00030409,7]
[370276100,1751934642063,-176.46,0.00030409,7]
[370276101,1751934642073,-460.0,0.00030409,7]
[370276102,1751934642082,-460.0,0.00030409,7]
[370276103,1751934642092,-460.0,0.00030409,7]
[370276104,1751934642101,-588.05,0.00030409,7]
[370276105,1751934642110,-490.0,0.00030409,7]
[370276106,1751934642120,-494.18143116,0.00030409,7]
[370276107,1751934642129,-490.0,0.00030409,7]
[370276108,1751934642140,-460.0,0.00030409,7]
[370276109,1751934642149,-490.0,0.00030409,7]
[370276110,1751934642159,-598.55,0.00030409,7]
[370276111,1751934642170,-490.0,0.00030409,7]
[370276112,1751934642179,-490.0,0.00030409,7]
[370276113,1751934642188,-490.0,0.00030409,7]
[370276114,1751934642198,-490.0,0.00030409,7]
[370276115,1751934642208,-490.0,0.00030409,7]
[370276116,1751934642218,-460.0,0.00030409,7]
[370276118,1751934642227,-490.0,0.00030409,7]
[370276119,1751934642237,-460.0,0.00030409,7]
[370276120,1751934642246,-490.0,0.00030409,7]
[370276121,1751934642256,-460.0,0.00030409,7]
[370276122,1751934642266,-460.0,0.00030409,7]
[370276123,1751934642277,-490.0,0.00030409,7]
[370276124,1751934642286,-490.0,0.00030409,7]
[370276125,1751934642296,-490.0,0.00030409,7]
[370276126,1751934642305,-490.0,0.00030409,7]
[370276127,1751934642315,-490.0,0.00030409,7]
[370276128,1751934642325,-490.0,0.00030409,7]
[370276129,1751934642334,-490.0,0.00030409,7]
[370276130,1751934642344,-490.0,0.00030409,7]
[370276131,1751934642353,-491.3,0.00030409,7]
[370276132,1751934642365,-460.0,0.00030409,7]
[370276133,1751934642375,-492.11,0.00030409,7]
[370276134,1751934642385,-573.16,0.00030409,7]
[370276135,1751934642397,-460.0,0.00030409,7]
[370276137,1751934642407,-460.0,0.0003041,7]
[370276139,1751934642416,-490.0,0.0003041,7]
[370276141,1751934642425,-460.0,0.0003041,7]
[370276143,1751934642434,-370.2,0.0003041,7]
[370276145,1751934642445,-466.75,0.0003041,7]
[370276147,1751934642453,-513.35,0.0003041,7]
[370276148,1751934642462,-353.75,0.00030412,2]
[370276149,1751934642471,-500.0,0.00030473,5]
[370276150,1751934642480,-153.96118992,0.0003049,2]
[370276152,1751934642490,-2463.877,0.00030509,2]
[370276154,1751934642500,-353.75,0.00030556,2]
[370276155,1751934642510,-2173.78143221,0.00030582,2]
[370276156,1751934642521,-159.31298226,0.00030582,15]
[370276157,1751934642532,-350.0,0.00030609,2]
[370276158,1751934642541,-155.60716437,0.00030671,2]
[370276159,1751934642552,-52008.6289832,0.00030672,3]
[370276160,1751934642564,-460.0,0.00030672,7]
[370276161,1751934642573,-460.0,0.00030672,7]
[370276162,1751934642583,-632.05,0.00030672,7]
[370276163,1751934642592,-460.0,0.00030672,7]
[370276164,1751934642602,-460.0,0.00030672,7]
[370276165,1751934642611,-490.0,0.00030672,7]
[370276166,1751934642621,-460.0,0.00030672,7]
[370276167,1751934642630,-490.0,0.00030672,7]
[370276168,1751934642643,-490.0,0.00030672,7]
[370276169,1751934642652,-460.0,0.00030672,7]
[370276170,1751934642662,-490.0,0.00030672,7]
[370276171,1751934642671,-490.0,0.00030672,7]